[Event "71st RUS-ch Higher League 2018"]
[Site "Yaroslavl"]
[Date "2018.07.04"]
[Round "8"]
[White "Esipenko, Andrey"]
[Black "Iskusnyh, Sergei"]
[Result "1/2-1/2"]
[ECO "D11"]
[WhiteElo "2599"]
[BlackElo "2473"]
[Annotator "ChessBase"]
[PlyCount "151"]
[EventDate "2018.06.26"]
[EventType "swiss"]
[EventCountry "RUS"]
[SourceTitle "playchess.com"]
[Source "ChessBase"]
[SourceQuality "1"]
[TimeControl "40/5400+30:1800+30"]

1. d4 {[%emt 0:00:00]} d5 {[%emt 0:00:00]} 2. c4 {[%emt 0:00:00]} c6 {[%emt 0:00:00]} 3. Nf3 {[%emt 0:00:00]} Nf6 {[%emt 0:00:00]} 4. Qb3 {[%emt 0:00:00]} dxc4 {[%emt 0:00:47]} 5. Qxc4 {[%emt 0:00:00]} Bf5 {[%emt 0:00:05]} 6. g3 {[%emt 0:00:01]} e6 {[%emt 0:00:05]} 7. Bg2 {[%emt 0:00:03]} Nbd7 {[%emt 0:00:49]} 8. O-O {[%emt 0:00:09]} Be7 {[%emt 0:00:02]} 9. Nc3 {[%emt 0:00:06]} O-O {[%emt 0:00:08]} 10. Re1 {[%emt 0:00:03]} h6 {[%emt 0:02:14]} 11. e4 {[%emt 0:00:07]} Bh7 {[%emt 0:00:07]} 12. a3 {[%emt 0:00:10]} a5 {[%emt 0:05:10]} 13. Qe2 {[%emt 0:00:08]} Re8 {[%emt 0:14:43]} 14. Bd2 {[%emt 0:08:52]} Bf8 {[%emt 0:09:19]} 15. Rad1 {[%emt 0:01:46]} b5 {[%emt 0:05:02]} 16. Ne5 {[%emt 0:01:49]} Nxe5 {[%emt 0:02:12]} 17. dxe5 {[%emt 0:00:05]} Nd7 {[%emt 0:00:06]} 18. Be3 {[%emt 0:00:21]} Qc7 {[%emt 0:04:11]} 19. f4 {[%emt 0:00:15]} Nb6 {[%emt 0:05:55]} 20. Qc2 {[%emt 0:02:11]} Qb7 {[%emt 0:07:06]} 21. Bf2 {[%emt 0:01:00]} b4 {[%emt 0:02:46]} 22. axb4 {[%emt 0:03:15]} axb4 {[%emt 0:00:11]} 23. Nb1 {[%emt 0:00:07]} c5 {[%emt 0:07:07]} 24. Nd2 {[%emt 0:00:09]} c4 {[%emt 0:01:32]} 25. Nxc4 {[%emt 0:01:41]} Rac8 {[%emt 0:02:57]} 26. Bf1 {[%emt 0:01:00]} Nxc4 {[%emt 0:03:24]} 27. Bxc4 {[%emt 0:00:18]} b3 {[%emt 0:00:48]} 28. Qxb3 {[%emt 0:00:54]} Qb4 {[%emt 0:01:20]} 29. Rd4 {[%emt 0:08:28]} Bc5 {[%emt 0:12:12]} 30. Qxb4 {[%emt 0:02:03]} Bxb4 {[%emt 0:00:06]} 31. Rc1 {[%emt 0:00:51]} Bc5 {[%emt 0:06:47]} 32. Ba6 {[%emt 0:08:02]} Bxd4 {[%emt 0:01:15]} 33. Rxc8 {[%emt 0:00:09]} Rxc8 {[%emt 0:00:08]} 34. Bxc8 {[%emt 0:00:09]} Bxb2 {[%emt 0:00:14]} 35. Bb7 {[%emt 0:00:09]} Bc1 {[%emt 0:04:47]} 36. Kg2 {[%emt 0:00:32]} g5 {[%emt 0:01:06]} 37. Kf3 {[%emt 0:00:44]} Bg6 {[%emt 0:02:17]} 38. Kg4 {[%emt 0:00:15]} Kg7 {[%emt 0:01:04]} 39. Bc5 {[%emt 0:00:37]} gxf4 {[%emt 0:00:51]} 40. gxf4 {[%emt 0:00:00]} f5+ {[%emt 0:00:00]} 41. exf6+ {[%emt 0:01:00]} Kxf6 {[%emt 0:00:35]} 42. Bd4+ {[%emt 0:03:18]} Kf7 {[%emt 0:00:18]} 43. h4 {[%emt 0:03:15]} Bh7 {[%emt 0:06:06]} 44. h5 {[%emt 0:02:52]} Kf8 {[%emt 0:03:48]} 45. Kf3 {[%emt 0:03:31]} Bg8 {[%emt 0:00:30]} 46. Bc8 {[%emt 0:02:06]} Bf7 {[%emt 0:03:03]} 47. Kg4 {[%emt 0:00:09]} Bd2 {[%emt 0:01:35]} 48. Be5 {[%emt 0:06:05]} Bb4 {[%emt 0:04:21]} 49. Ba6 {[%emt 0:01:07]} Bc5 {[%emt 0:01:35]} 50. Be2 {[%emt 0:00:40]} Be8 {[%emt 0:03:35]} 51. Bc3 {[%emt 0:02:06]} Bc6 {[%emt 0:01:47]} 52. Bd3 {[%emt 0:00:30]} Kf7 {[%emt 0:05:01]} 53. Kf3 {[%emt 0:04:10]} Ba4 {[%emt 0:00:34]} 54. Ke2 {[%emt 0:01:16]} Ke7 {[%emt 0:01:38]} 55. Kd2 {[%emt 0:00:27]} Be8 {[%emt 0:01:24]} 56. Be2 {[%emt 0:00:17]} Bc6 {[%emt 0:00:12]} 57. Bf3 {[%emt 0:01:46]} Bd6 {[%emt 0:00:36]} 58. Ke3 {[%emt 0:00:08]} Bc5+ {[%emt 0:00:33]} 59. Ke2 {[%emt 0:00:06]} Kf7 {[%emt 0:00:29]} 60. Be5 {[%emt 0:00:17]} Bb5+ {[%emt 0:00:26]} 61. Kd2 {[%emt 0:00:33]} Bb4+ {[%emt 0:00:54]} 62. Kc2 {[%emt 0:00:29]} Ba4+ {[%emt 0:00:13]} 63. Kd3 {[%emt 0:00:12]} Bb5+ {[%emt 0:00:28]} 64. Kd4 {[%emt 0:00:10]} Ba3 {[%emt 0:00:07]} 65. Bc7 {[%emt 0:00:31]} Ke7 {[%emt 0:00:50]} 66. Ba5 {[%emt 0:01:42]} Bc6 {[%emt 0:00:24]} 67. Bd2 {[%emt 0:01:28]} Bb7 {[%emt 0:02:18]} 68. Bd1 {[%emt 0:00:22]} Bb2+ {[%emt 0:00:16]} 69. Ke3 {[%emt 0:00:07]} Ba3 {[%emt 0:00:10]} 70. Bb3 {[%emt 0:00:30]} Bc6 {[%emt 0:00:17]} 71. Bc3 {[%emt 0:00:09]} Be8 {[%emt 0:00:19]} 72. Bd1 {[%emt 0:00:12]} Bc1+ {[%emt 0:00:19]} 73. Bd2 {[%emt 0:00:11]} Bxd2+ {[%emt 0:00:15]} 74. Kxd2 {[%emt 0:00:06]} e5 {[%emt 0:00:36]} 75. Ke3 {[%emt 0:00:45]} Kf6 {[%emt 0:00:18]} 76. Bg4 {[%emt 0:00:10]} 1/2-1/2

[Event "71st RUS-ch Higher League 2018"]
[Site "Yaroslavl"]
[Date "2018.07.04"]
[Round "8"]
[White "Potkin, Vladimir"]
[Black "Sviridov, Valery"]
[Result "1/2-1/2"]
[ECO "B06"]
[WhiteElo "2592"]
[BlackElo "2513"]
[Annotator "ChessBase"]
[PlyCount "75"]
[EventDate "2018.06.26"]
[EventType "swiss"]
[EventCountry "RUS"]
[SourceTitle "playchess.com"]
[Source "ChessBase"]
[SourceQuality "1"]
[TimeControl "40/5400+30:1800+30"]

1. e4 {[%emt 0:00:00]} g6 {[%emt 0:00:00]} 2. d4 {[%emt 0:00:00]} Bg7 {[%emt 0:00:00]} 3. Nc3 {[%emt 0:00:31]} d6 {[%emt 0:01:08]} 4. Be3 {[%emt 0:01:54]} a6 {[%emt 0:00:36]} 5. Nf3 {[%emt 0:01:50]} b5 {[%emt 0:02:50]} 6. Bd3 {[%emt 0:01:22]} Bb7 {[%emt 0:00:34]} 7. e5 {[%emt 0:01:21]} Nd7 {[%emt 0:02:41]} 8. e6 {[%emt 0:00:43]} fxe6 {[%emt 0:00:07]} 9. Ng5 {[%emt 0:00:05]} Nf8 {[%emt 0:00:10]} 10. O-O {[%emt 0:00:18]} Nh6 {[%emt 0:01:56]} 11. a4 {[%emt 0:02:56]} b4 {[%emt 0:01:51]} 12. Ne2 {[%emt 0:00:39]} Nf5 {[%emt 0:00:12]} 13. c3 {[%emt 0:00:52]} bxc3 {[%emt 0:00:38]} 14. Bxf5 {[%emt 0:02:32]} cxb2 {[%emt 0:18:37]} 15. Rb1 {[%emt 0:05:03]} gxf5 {[%emt 0:00:23]} 16. Nf4 {[%emt 0:00:25]} Bf6 {[%emt 0:13:01]} 17. Ngxe6 {[%emt 0:32:06]} Nxe6 {[%emt 0:00:43]} 18. Nxe6 {[%emt 0:01:22]} Rg8 {[%emt 0:00:36]} 19. g3 {[%emt 0:19:46]} Qc8 {[%emt 0:01:11]} 20. Qh5+ {[%emt 0:03:18]} Rg6 {[%emt 0:04:33]} 21. Nf4 {[%emt 0:05:37]} Kd8 {[%emt 0:01:30]} 22. Rxb2 {[%emt 0:02:10]} Rg4 {[%emt 0:06:23]} 23. Qxh7 {[%emt 0:02:27]} Bf3 {[%emt 0:12:14]} 24. Rc1 {[%emt 0:01:11]} Rxf4 {[%emt 0:06:14]} 25. Bxf4 {[%emt 0:02:36]} Qe6 {[%emt 0:00:13]} 26. Rbc2 {[%emt 0:02:40]} Bd5 {[%emt 0:00:43]} 27. Rxc7 {[%emt 0:01:25]} Qe4 {[%emt 0:00:16]} 28. Kf1 {[%emt 0:00:05]} Rb8 {[%emt 0:01:39]} 29. Be3 {[%emt 0:02:42]} Qh1+ {[%emt 0:05:34]} 30. Ke2 {[%emt 0:00:01]} Rb2+ {[%emt 0:00:15]} 31. R7c2 {[%emt 0:00:41]} Rxc2+ {[%emt 0:02:32]} 32. Rxc2 {[%emt 0:00:01]} Bf3+ {[%emt 0:00:12]} 33. Kd2 {[%emt 0:00:47]} Qd1+ {[%emt 0:00:09]} 34. Kc3 {[%emt 0:00:02]} Qa1+ {[%emt 0:03:05]} 35. Kd2 {[%emt 0:00:30]} Qd1+ {[%emt 0:01:09]} 36. Kc3 {[%emt 0:00:01]} Qa1+ {[%emt 0:00:33]} 37. Kd2 {[%emt 0:00:05]} Qd1+ {[%emt 0:00:09]} 38. Kc3 1/2-1/2

[Event "71st RUS-ch Higher League 2018"]
[Site "Yaroslavl"]
[Date "2018.07.04"]
[Round "8"]
[White "Timofeev, Artyom"]
[Black "Khismatullin, Denis"]
[Result "0-1"]
[ECO "A05"]
[WhiteElo "2583"]
[BlackElo "2627"]
[Annotator "ChessBase"]
[PlyCount "54"]
[EventDate "2018.06.26"]
[EventType "swiss"]
[EventCountry "RUS"]
[SourceTitle "playchess.com"]
[Source "ChessBase"]
[SourceQuality "1"]
[TimeControl "40/5400+30:1800+30"]

1. Nf3 {[%emt 0:00:00]} Nf6 {[%emt 0:02:22]} 2. c4 {[%emt 0:00:08]} e6 {[%emt 0:00:23]} 3. Nc3 {[%emt 0:01:32]} d5 {[%emt 0:04:50]} 4. d4 {[%emt 0:00:25]} Nbd7 {[%emt 0:00:06]} 5. e3 {[%emt 0:03:08]} a6 {[%emt 0:11:50]} 6. b3 {[%emt 0:11:31]} b6 {[%emt 0:02:07]} 7. Bb2 {[%emt 0:01:18]} Bb7 {[%emt 0:00:05]} 8. Bd3 {[%emt 0:00:47]} Bd6 {[%emt 0:01:06]} 9. O-O {[%emt 0:07:24]} O-O {[%emt 0:00:34]} 10. Re1 {[%emt 0:00:58]} Ne4 {[%emt 0:04:28]} 11. a3 {[%emt 0:01:10]} f5 {[%emt 0:05:52]} 12. b4 {[%emt 0:00:48]} dxc4 {[%emt 0:08:44]} 13. Bxc4 {[%emt 0:00:05]} Qe7 {[%emt 0:03:52]} 14. Nxe4 {[%emt 0:15:01]} fxe4 {[%emt 0:07:06]} 15. Ne5 {[%emt 0:00:06]} Bxe5 {[%emt 0:06:22]} 16. dxe5 {[%emt 0:00:43]} Rf5 {[%emt 0:00:06]} 17. Ra2 {[%emt 0:04:53]} b5 {[%emt 0:04:59]} 18. Bb3 {[%emt 0:00:43]} c5 {[%emt 0:01:20]} 19. bxc5 {[%emt 0:04:57]} Nxc5 {[%emt 0:00:37]} 20. Bc2 {[%emt 0:00:16]} Bd5 {[%emt 0:03:35]} 21. Ra1 {[%emt 0:00:14]} Raf8 {[%emt 0:03:16]} 22. Rf1 {[%emt 0:11:45]} Qh4 {[%emt 0:12:15]} 23. f4 {[%emt 0:02:51]} exf3 {[%emt 0:01:20]} 24. Bxf5 {[%emt 0:00:08]} Rxf5 {[%emt 0:00:24]} 25. Rxf3 {[%emt 0:00:14]} Bxf3 {[%emt 0:03:27]} 26. gxf3 {[%emt 0:00:06]} Ne4 {[%emt 0:05:23]} 27. fxe4 {[%emt 0:01:39]} Rf2 {[%emt 0:01:43]} 0-1

[Event "71st RUS-ch Higher League 2018"]
[Site "Yaroslavl"]
[Date "2018.07.04"]
[Round "8"]
[White "Sakaev, Konstantin"]
[Black "Predke, Alexandr"]
[Result "1/2-1/2"]
[ECO "E16"]
[WhiteElo "2580"]
[BlackElo "2613"]
[Annotator "ChessBase"]
[PlyCount "214"]
[EventDate "2018.06.26"]
[EventType "swiss"]
[EventCountry "RUS"]
[SourceTitle "playchess.com"]
[Source "ChessBase"]
[SourceQuality "1"]
[TimeControl "40/5400+30:1800+30"]

1. d4 {[%emt 0:00:00]} Nf6 {[%emt 0:01:17]} 2. c4 {[%emt 0:00:00]} e6 {[%emt 0:00:17]} 3. Nf3 {[%emt 0:00:00]} b6 {[%emt 0:00:09]} 4. g3 {[%emt 0:00:34]} Bb7 {[%emt 0:00:14]} 5. Bg2 {[%emt 0:00:05]} Bb4+ {[%emt 0:00:13]} 6. Nbd2 {[%emt 0:00:18]} O-O {[%emt 0:00:42]} 7. O-O {[%emt 0:00:10]} a5 {[%emt 0:00:08]} 8. Qc2 {[%emt 0:02:15]} c5 {[%emt 0:00:55]} 9. Rd1 {[%emt 0:05:50]} cxd4 {[%emt 0:11:15]} 10. Nxd4 {[%emt 0:01:23]} Bxg2 {[%emt 0:03:36]} 11. Kxg2 {[%emt 0:00:10]} Qc7 {[%emt 0:00:45]} 12. b3 {[%emt 0:06:20]} Rc8 {[%emt 0:16:53]} 13. Bb2 {[%emt 0:07:48]} Qb7+ {[%emt 0:00:45]} 14. N4f3 {[%emt 0:04:41]} Be7 {[%emt 0:01:23]} 15. Rac1 {[%emt 0:01:52]} d5 {[%emt 0:06:02]} 16. Qb1 {[%emt 0:04:56]} Nbd7 {[%emt 0:00:48]} 17. cxd5 {[%emt 0:00:52]} Nxd5 {[%emt 0:05:16]} 18. Rxc8+ {[%emt 0:04:13]} Rxc8 {[%emt 0:00:14]} 19. Rc1 {[%emt 0:00:08]} Rxc1 {[%emt 0:03:22]} 20. Qxc1 {[%emt 0:00:19]} b5 {[%emt 0:00:33]} 21. Kg1 {[%emt 0:01:02]} h6 {[%emt 0:06:36]} 22. Bd4 {[%emt 0:06:49]} Bf8 {[%emt 0:01:00]} 23. Qc2 {[%emt 0:05:50]} Nb4 {[%emt 0:02:19]} 24. Qb2 {[%emt 0:00:20]} Qd5 {[%emt 0:03:20]} 25. Nb1 {[%emt 0:02:55]} Nc6 {[%emt 0:07:32]} 26. Nc3 {[%emt 0:01:17]} Qf5 {[%emt 0:00:36]} 27. Qb1 {[%emt 0:01:19]} Qxb1+ {[%emt 0:03:27]} 28. Nxb1 {[%emt 0:00:09]} e5 {[%emt 0:10:27]} 29. Be3 {[%emt 0:01:34]} Bb4 {[%emt 0:02:24]} 30. Kf1 {[%emt 0:04:54]} f5 {[%emt 0:02:40]} 31. Ne1 {[%emt 0:00:17]} Kf7 {[%emt 0:03:19]} 32. Nd3 {[%emt 0:04:32]} Bf8 {[%emt 0:00:47]} 33. Nc3 {[%emt 0:01:21]} e4 {[%emt 0:00:33]} 34. Nf4 {[%emt 0:06:38]} b4 {[%emt 0:00:47]} 35. Na4 {[%emt 0:00:23]} g5 {[%emt 0:01:53]} 36. Nd5 {[%emt 0:00:15]} Bd6 {[%emt 0:00:52]} 37. f3 {[%emt 0:04:08]} Ke6 {[%emt 0:01:56]} 38. fxe4 {[%emt 0:00:17]} Ke5 {[%emt 0:02:27]} 39. Ndb6 {[%emt 0:08:56]} Kxe4 {[%emt 0:00:25]} 40. Nc4 {[%emt 0:00:00]} Bc7 {[%emt 0:00:00]} 41. Bf2 {[%emt 0:08:36]} h5 {[%emt 0:08:08]} 42. Nd2+ {[%emt 0:02:06]} Kd5 {[%emt 0:00:40]} 43. Be3 {[%emt 0:00:13]} g4 {[%emt 0:01:12]} 44. Bg5 {[%emt 0:02:25]} Nf8 {[%emt 0:05:05]} 45. e3 {[%emt 0:02:13]} Nh7 {[%emt 0:05:40]} 46. Bh6 {[%emt 0:02:42]} Nf6 {[%emt 0:00:44]} 47. Nb2 {[%emt 0:11:38]} Ke6 {[%emt 0:06:43]} 48. Nd3 {[%emt 0:02:05]} Nd5 {[%emt 0:00:03]} 49. Nc4 {[%emt 0:00:46]} Nc3 {[%emt 0:01:00]} 50. a3 {[%emt 0:03:53]} bxa3 {[%emt 0:00:17]} 51. Nxa3 {[%emt 0:00:10]} Kd5 {[%emt 0:03:10]} 52. Bg7 {[%emt 0:01:14]} Ne4 {[%emt 0:01:25]} 53. Ke2 {[%emt 0:02:27]} Ng5 {[%emt 0:00:37]} 54. Nb5 {[%emt 0:00:54]} Bb8 {[%emt 0:00:03]} 55. Nc3+ {[%emt 0:03:39]} Ke6 {[%emt 0:00:05]} 56. Ne1 {[%emt 0:00:11]} Kf7 {[%emt 0:02:51]} 57. Bh8 {[%emt 0:01:01]} Bd6 {[%emt 0:00:53]} 58. Nb5 {[%emt 0:00:33]} Bb8 {[%emt 0:00:52]} 59. Bd4 {[%emt 0:03:10]} Ne4 {[%emt 0:01:08]} 60. Ng2 {[%emt 0:01:33]} Ne5 {[%emt 0:00:33]} 61. Nh4 {[%emt 0:02:49]} Ke6 {[%emt 0:00:37]} 62. Bb6 {[%emt 0:00:36]} Nc6 {[%emt 0:00:17]} 63. Ng2 {[%emt 0:00:54]} Kd5 {[%emt 0:00:39]} 64. Nf4+ {[%emt 0:00:15]} Bxf4 {[%emt 0:00:04]} 65. exf4 {[%emt 0:00:02]} a4 {[%emt 0:00:58]} 66. bxa4 {[%emt 0:00:11]} Kc4 {[%emt 0:00:02]} 67. Ke3 {[%emt 0:00:53]} Nb4 {[%emt 0:00:41]} 68. Bd8 {[%emt 0:00:22]} Nd5+ {[%emt 0:00:31]} 69. Ke2 {[%emt 0:00:06]} Ndc3+ {[%emt 0:00:37]} 70. Nxc3 {[%emt 0:00:08]} Nxc3+ {[%emt 0:00:03]} 71. Ke3 {[%emt 0:00:19]} Nxa4 {[%emt 0:00:04]} 72. Bf6 {[%emt 0:00:26]} Nb6 {[%emt 0:01:00]} 73. Be5 {[%emt 0:00:08]} Nd5+ {[%emt 0:00:43]} 74. Ke2 {[%emt 0:00:07]} Nb4 {[%emt 0:00:33]} 75. Bf6 {[%emt 0:00:32]} Kb3 {[%emt 0:00:49]} 76. Kd2 {[%emt 0:00:26]} Kc4 {[%emt 0:00:19]} 77. Ke2 {[%emt 0:00:13]} Nc2 {[%emt 0:00:06]} 78. Kd2 {[%emt 0:01:14]} Na3 {[%emt 0:01:03]} 79. Ke2 {[%emt 0:00:19]} Nb5 {[%emt 0:00:13]} 80. Kd2 {[%emt 0:00:59]} Nd6 {[%emt 0:00:16]} 81. Ke2 {[%emt 0:00:27]} Ne4 {[%emt 0:00:20]} 82. Bg7 {[%emt 0:00:47]} Nc5 {[%emt 0:01:07]} 83. Kd2 {[%emt 0:01:07]} Nd3 {[%emt 0:00:22]} 84. Ke3 {[%emt 0:00:18]} Ne1 {[%emt 0:00:16]} 85. Ke2 {[%emt 0:00:40]} Nf3 {[%emt 0:00:30]} 86. h4 {[%emt 0:00:22]} Nh2 {[%emt 0:00:33]} 87. Bf6 {[%emt 0:00:49]} Kd5 {[%emt 0:00:07]} 88. Bg7 {[%emt 0:00:41]} Ke4 {[%emt 0:00:12]} 89. Bh8 {[%emt 0:00:22]} Nf3 {[%emt 0:00:45]} 90. Bf6 {[%emt 0:00:27]} Kd5 {[%emt 0:00:26]} 91. Kd3 {[%emt 0:00:42]} Kc5 {[%emt 0:01:08]} 92. Be7+ {[%emt 0:00:12]} Kb5 {[%emt 0:00:10]} 93. Bf8 {[%emt 0:00:33]} Ka4 {[%emt 0:00:28]} 94. Bc5 {[%emt 0:00:42]} Kb3 {[%emt 0:00:33]} 95. Ke2 {[%emt 0:00:34]} Kc3 {[%emt 0:00:48]} 96. Bf2 {[%emt 0:00:24]} Kb2 {[%emt 0:00:32]} 97. Bb6 {[%emt 0:00:47]} Kc1 {[%emt 0:00:15]} 98. Bc5 {[%emt 0:00:21]} Kc2 {[%emt 0:00:08]} 99. Be3 {[%emt 0:00:10]} Kb3 {[%emt 0:00:19]} 100. Bb6 {[%emt 0:00:36]} Kc4 {[%emt 0:00:27]} 101. Bf2 {[%emt 0:00:36]} Kc3 {[%emt 0:00:11]} 102. Bb6 {[%emt 0:00:17]} Kc2 {[%emt 0:00:08]} 103. Be3 {[%emt 0:00:11]} Kc3 {[%emt 0:00:05]} 104. Bb6 {[%emt 0:00:07]} Kc4 {[%emt 0:00:15]} 105. Bf2 {[%emt 0:00:39]} Kb5 {[%emt 0:00:53]} 106. Kd3 {[%emt 0:00:15]} Kb4 {[%emt 0:00:07]} 107. Ke2 {[%emt 0:00:17]} Kc3 {[%emt 0:00:06]} 1/2-1/2

[Event "71st RUS-ch Higher League 2018"]
[Site "Yaroslavl"]
[Date "2018.07.04"]
[Round "8"]
[White "Moskalenko, Alexander"]
[Black "Oganian, Miran"]
[Result "1/2-1/2"]
[ECO "B24"]
[WhiteElo "2558"]
[BlackElo "2432"]
[Annotator "ChessBase"]
[PlyCount "90"]
[EventDate "2018.06.26"]
[EventType "swiss"]
[EventCountry "RUS"]
[SourceTitle "playchess.com"]
[Source "ChessBase"]
[SourceQuality "1"]
[TimeControl "40/5400+30:1800+30"]

1. e4 {[%emt 0:00:00]} c5 {[%emt 0:00:00]} 2. Nc3 {[%emt 0:00:00]} Nc6 {[%emt 0:02:08]} 3. Bb5 {[%emt 0:01:54]} Nd4 {[%emt 0:02:26]} 4. Nf3 {[%emt 0:00:58]} e6 {[%emt 0:01:28]} 5. O-O {[%emt 0:04:26]} a6 {[%emt 0:07:53]} 6. Bd3 {[%emt 0:01:11]} Ne7 {[%emt 0:00:19]} 7. Nxd4 {[%emt 0:01:22]} cxd4 {[%emt 0:00:04]} 8. Ne2 {[%emt 0:00:07]} Nc6 {[%emt 0:00:36]} 9. c3 {[%emt 0:00:07]} Bc5 {[%emt 0:18:57]} 10. b4 {[%emt 0:00:56]} Be7 {[%emt 0:00:38]} 11. f4 {[%emt 0:11:21]} O-O {[%emt 0:05:24]} 12. a3 {[%emt 0:03:22]} d6 {[%emt 0:04:05]} 13. Kh1 {[%emt 0:16:43]} Bf6 {[%emt 0:03:41]} 14. Bb2 {[%emt 0:00:30]} dxc3 {[%emt 0:02:16]} 15. dxc3 {[%emt 0:02:12]} b5 {[%emt 0:01:43]} 16. Qc2 {[%emt 0:03:06]} g6 {[%emt 0:01:40]} 17. c4 {[%emt 0:01:14]} bxc4 {[%emt 0:02:04]} 18. Bxc4 {[%emt 0:01:43]} Bb7 {[%emt 0:03:19]} 19. Rad1 {[%emt 0:14:34]} Bxb2 {[%emt 0:02:45]} 20. Qxb2 {[%emt 0:00:01]} Ne7 {[%emt 0:03:50]} 21. Bd3 {[%emt 0:12:27]} d5 {[%emt 0:06:22]} 22. f5 {[%emt 0:00:39]} exf5 {[%emt 0:03:11]} 23. exf5 {[%emt 0:00:20]} Qd6 {[%emt 0:00:15]} 24. Ng3 {[%emt 0:08:02]} Nc6 {[%emt 0:03:21]} 25. Be4 {[%emt 0:00:35]} Qe5 {[%emt 0:07:35]} 26. Qxe5 {[%emt 0:00:39]} Nxe5 {[%emt 0:00:06]} 27. Bxd5 {[%emt 0:00:04]} Bxd5 {[%emt 0:00:20]} 28. Rxd5 {[%emt 0:00:05]} Nc4 {[%emt 0:00:25]} 29. Rd3 {[%emt 0:01:30]} a5 {[%emt 0:04:55]} 30. Rc1 {[%emt 0:01:58]} axb4 {[%emt 0:02:30]} 31. axb4 {[%emt 0:04:17]} Rfb8 {[%emt 0:04:15]} 32. Kg1 {[%emt 0:02:30]} Ra3 {[%emt 0:05:21]} 33. Rxa3 {[%emt 0:04:20]} Nxa3 {[%emt 0:00:05]} 34. f6 {[%emt 0:00:11]} h6 {[%emt 0:02:23]} 35. Ne4 {[%emt 0:01:07]} Rxb4 {[%emt 0:00:30]} 36. Rc8+ {[%emt 0:00:24]} Kh7 {[%emt 0:00:03]} 37. Nd6 {[%emt 0:00:09]} Rb6 {[%emt 0:01:05]} 38. Nxf7 {[%emt 0:01:31]} Rxf6 {[%emt 0:00:08]} 39. Rc7 {[%emt 0:00:07]} Nb5 {[%emt 0:00:40]} 40. Rd7 {[%emt 0:00:00]} Nc3 {[%emt 0:00:00]} 41. h4 {[%emt 0:04:59]} h5 {[%emt 0:03:40]} 42. Kh2 {[%emt 0:01:39]} Kg8 {[%emt 0:02:01]} 43. Ne5 {[%emt 0:03:06]} Re6 {[%emt 0:02:18]} 44. Nd3 {[%emt 0:02:22]} Re4 {[%emt 0:05:03]} 45. Kg3 {[%emt 0:02:38]} Rd4 1/2-1/2

[Event "71st RUS-ch Higher League 2018"]
[Site "Yaroslavl"]
[Date "2018.07.04"]
[Round "8"]
[White "Lomasov, Semen"]
[Black "Yanchenko, Roman"]
[Result "1/2-1/2"]
[ECO "C16"]
[WhiteElo "2549"]
[BlackElo "2462"]
[Annotator "ChessBase"]
[PlyCount "81"]
[EventDate "2018.06.26"]
[EventType "swiss"]
[EventCountry "RUS"]
[SourceTitle "playchess.com"]
[Source "ChessBase"]
[SourceQuality "1"]
[TimeControl "40/5400+30:1800+30"]

1. e4 {[%emt 0:00:00]} e6 {[%emt 0:00:00]} 2. d4 {[%emt 0:00:00]} d5 {[%emt 0:00:00]} 3. Nc3 {[%emt 0:00:00]} Bb4 {[%emt 0:00:00]} 4. e5 {[%emt 0:00:00]} Ne7 {[%emt 0:00:00]} 5. a3 {[%emt 0:00:05]} Bxc3+ {[%emt 0:00:00]} 6. bxc3 {[%emt 0:00:06]} b6 {[%emt 0:00:00]} 7. Qg4 {[%emt 0:00:10]} Kf8 {[%emt 0:00:00]} 8. a4 {[%emt 0:01:04]} h5 {[%emt 0:00:00]} 9. Qf3 {[%emt 0:03:41]} Ba6 {[%emt 0:00:29]} 10. Bxa6 {[%emt 0:00:11]} Nxa6 {[%emt 0:00:02]} 11. a5 {[%emt 0:00:34]} Nb8 {[%emt 0:00:06]} 12. Ne2 {[%emt 0:03:35]} Ng6 {[%emt 0:07:17]} 13. O-O {[%emt 0:12:56]} Nc6 {[%emt 0:00:36]} 14. axb6 {[%emt 0:00:06]} cxb6 {[%emt 0:04:07]} 15. c4 {[%emt 0:01:07]} Rc8 {[%emt 0:00:58]} 16. Ba3+ {[%emt 0:08:41]} Kg8 {[%emt 0:01:51]} 17. cxd5 {[%emt 0:00:07]} exd5 {[%emt 0:05:53]} 18. Bd6 {[%emt 0:02:29]} Nh4 {[%emt 0:04:30]} 19. Qh3 {[%emt 0:17:28]} g6 {[%emt 0:19:51]} 20. c4 {[%emt 0:00:06]} Nf5 {[%emt 0:01:37]} 21. cxd5 {[%emt 0:01:26]} Na5 {[%emt 0:01:07]} 22. Bb4 {[%emt 0:01:43]} Qxd5 {[%emt 0:00:15]} 23. Ng3 {[%emt 0:03:13]} Nxg3 {[%emt 0:01:07]} 24. hxg3 {[%emt 0:01:25]} Kh7 {[%emt 0:04:09]} 25. Bxa5 {[%emt 0:08:19]} bxa5 {[%emt 0:00:02]} 26. g4 {[%emt 0:02:10]} Qxd4 {[%emt 0:07:01]} 27. Rxa5 {[%emt 0:01:34]} Kg7 {[%emt 0:04:17]} 28. Qe3 {[%emt 0:03:51]} Qxe3 {[%emt 0:05:32]} 29. fxe3 {[%emt 0:00:02]} Rc7 {[%emt 0:00:04]} 30. Rfa1 {[%emt 0:02:49]} hxg4 {[%emt 0:04:39]} 31. Rxa7 {[%emt 0:00:12]} Rxa7 {[%emt 0:00:25]} 32. Rxa7 {[%emt 0:00:03]} Re8 {[%emt 0:00:04]} 33. Ra5 {[%emt 0:00:48]} Rb8 {[%emt 0:00:17]} 34. Ra4 {[%emt 0:04:46]} g3 {[%emt 0:00:46]} 35. Kf1 {[%emt 0:00:02]} Rb2 {[%emt 0:00:17]} 36. Rg4 {[%emt 0:00:17]} Rf2+ {[%emt 0:00:11]} 37. Kg1 {[%emt 0:00:02]} Rf5 {[%emt 0:00:05]} 38. Rxg3 {[%emt 0:00:30]} Rxe5 {[%emt 0:00:02]} 39. Kf2 {[%emt 0:00:07]} Ra5 {[%emt 0:00:03]} 40. Rg4 {[%emt 0:00:00]} Rb5 {[%emt 0:00:00]} 41. Ra4 {[%emt 0:00:10]} 1/2-1/2